Cogmind - Beta 14 @@@ ROGUE MODE // 2025.04.25 @ 17:14:17 Player: r@sin Result: Destroyed by S-27 Virus with Autogun Performance ------------- Evolutions (4) 2000 Regions Visited (9) 1800 Robots Destroyed (90) 450 Value Destroyed (2980) 2980 Prototype IDs (9) 180 Alien Tech Used (0) 0 Bonus (-170) -170 TOTAL SCORE: 7240 Bonus ------- High Alert Combat Kills 26 Follower Combat Kills 296 Friendly Fire -492 Cogmind --------- Core Integrity 0/850 Matter 281/300 Energy 160/160 System Corruption 7% Temperature Cool (0) Movement Hovering (60) Location -6/Factory Parts ------- > --- POWER (2) -------- Light Fission Core > --- PROPULSION (4) --- Gravmag System > --- UTILITY (7) ------ (None) > --- WEAPON (2) ------- (None) > --- INVENTORY (5) ---- Enhanced Nuclear Core Micro Fission Core Hardened Light Armor Plating Plasma Cannon Great Maul Peak State ------------ > --- POWER ------------ Light Angular Momentum Engine Micro Fission Core > --- PROPULSION ------- Carbon-fiber Leg Carbon-fiber Leg Carbon-fiber Leg Flexi-carbon Leg > --- UTILITY ---------- High-capacity Storage Unit Advanced Melee Analysis Suite Core Analyzer Microactuators Improved Reaction Control System Improved Light Armor Plating High-powered Tractor Beam > --- WEAPON ----------- Heavy Flail Heavy Pick > --- INVENTORY -------- Enhanced Nuclear Core Enhanced Nuclear Core Enhanced Nuclear Core Medium Treads Cesium-ion Thruster Cesium-ion Thruster Cesium-ion Thruster Cesium-ion Thruster Cesium-ion Thruster Large Storage Unit Core Analyzer Core Analyzer Improved Reaction Control System Grenade Launcher Heavy Mace [Rating: 63] Favorites ----------- Power Micro Nuclear Core Engine Deuterium Engine Power Core Micro Nuclear Core Propulsion Light Treads Treads Light Treads Leg Carbon-fiber Leg Hover Unit Gravmag System Flight Unit Cesium-ion Thruster Utility Improved Targeting Computer Device Heat Sink Storage High-capacity Storage Unit Processor Improved Targeting Computer Hackware System Shield Protection Medium Armor Plating Weapon Plasma Cannon Energy Gun Heavy EM Pulse Gun Energy Cannon Plasma Cannon Ballistic Gun Gauss Rifle Launcher Grenade Launcher Impact Weapon Heavy Flail Slashing Weapon Chainsword Piercing Weapon Heavy Pick Build | -11 -10 -10 -9 -9 -8 -7 -7 -7 -6 ------- Run | Yrd Mat Min Mat Min Mat Fac Was Fac Fac Slots Evolved 8 | . . . 2 . 2 2 . . 2 Power 1 | . . . . . . 1 . . . Propulsion 2 | . . . . . 1 . . . 1 Utility 5 | . . . 2 . 1 1 . . 1 Weapon . | . . . . . . . . . . Parts Attached 169 | 6 1 1 5 4 16 8 1 50 77 Power 23 | 1 . . . 1 1 3 . 6 11 Engine 9 | 1 . . . 1 1 . . 3 3 Core 14 | . . . . . . 3 . 3 8 Reactor . | . . . . . . . . . . Propulsion 46 | 2 . . . . 8 1 1 13 21 Treads 24 | 2 . . . . 6 1 1 11 3 Leg 8 | . . . . . . . . 2 6 Wheel . | . . . . . . . . . . Hover 7 | . . . . . 2 . . . 5 Flight 7 | . . . . . . . . . 7 Utility 61 | 1 . . 1 2 4 2 . 16 35 Device 35 | . . . . 2 2 1 . 10 20 Storage 4 | 1 . . . . 1 . . . 2 Processor 6 | . . . 1 . . . . 1 4 Hackware 1 | . . . . . . . . . 1 Protection 15 | . . . . . 1 1 . 5 8 Artifact . | . . . . . . . . . . Weapon 39 | 2 1 1 4 1 3 2 . 15 10 Energy Gun 15 | 2 . 1 2 . 2 1 . 6 1 Energy Cannon 8 | . 1 . . 1 1 . . 5 . Ballistic Gun 5 | . . . 1 . . 1 . 2 1 Ballistic Cannon . | . . . . . . . . . . Launcher 4 | . . . 1 . . . . 2 1 Special Weapon . | . . . . . . . . . . Impact Weapon 3 | . . . . . . . . . 3 Slashing Weapon 1 | . . . . . . . . . 1 Piercing Weapon 3 | . . . . . . . . . 3 Special Melee Weapon . | . . . . . . . . . . Unidentified Prototypes 9 | . . . 1 . 1 . . 5 2 Corrupted Parts 8 | . . . . . . . . 7 1 System Corruption 26 | . . . . . . . . 23 3 Parts Lost 47 | . . . . . . 1 3 5 38 Power 6 | . . . . . . . 1 . 5 Propulsion 13 | . . . . . . . . . 13 Utility 21 | . . . . . . . 2 4 15 Weapon 7 | . . . . . . 1 . 1 5 Highest Loss Streak 15 | . . . . . . 1 2 3 15 To Critical Strikes . | . . . . . . . . . . Average Slot Usage (%) 87 | . 85 85 73 79 97 99 61 93 81 Engine 6 | . 14 14 11 11 9 5 . 3 3 Core 5 | . . . . . . 9 13 11 5 Treads 18 | . 28 28 22 22 25 23 10 17 11 Leg 1 | . . . . . . . . . 4 Device 15 | . . . . 2 24 23 11 13 19 Storage 7 | . 14 14 11 11 9 7 7 7 3 Processor 7 | . . . 7 11 9 7 7 7 7 Protection 5 | . . . . . 1 6 2 14 5 Energy Gun 5 | . 24 14 10 11 7 4 3 3 . Energy Cannon 8 | . 3 14 7 10 10 7 2 10 4 Peak Build Rating 63 | 6 6 7 10 13 23 35 47 50 63 Average Rating 29 | 4 6 6 9 11 18 32 35 41 41 On Entrance 15 | . 6 6 7 10 13 23 35 21 35 Naked Turns . | . . . . . . . . . . Heaviest Build 87 | 12 13 14 14 19 63 78 75 87 74 Greatest Support 95 | 40 40 40 40 40 60 60 95 95 80 Greatest Overweight (x) 15 | . . . . . 1 1 1 3 15 Average Overweight (x) . | . . . . . . 1 . . . Largest Inventory Capacity 20 | 8 8 8 8 8 20 20 20 20 20 Average Capacity 14 | 6 8 8 8 8 14 20 20 20 13 Most Carried 20 | 3 5 7 8 8 17 20 20 20 20 Average Carried 12 | 1 4 6 7 7 11 18 19 17 11 Final Capacity 20 | 8 8 8 8 8 20 20 20 20 5 Final Carried 20 | 3 5 7 7 8 17 19 20 19 5 Class Distribution -------------------- 50% | Scavenger-Mutant 41% | Mutant 3% | Scavenger-Gladiator 3% | Gladiator Dominant Class ---------------- Mutant | -10/Materials Mutant | -10/Mines Mutant | -9/Materials Mutant | -9/Mines Scavenger-Mutant | -8/Materials Scavenger-Mutant | -7/Factory Mutant | -7/Waste Scavenger-Mutant | -7/Factory Scavenger-Mutant | -6/Factory Resources | -11 -10 -10 -9 -9 -8 -7 -7 -7 -6 ----------- Run | Yrd Mat Min Mat Min Mat Fac Was Fac Fac Matter Collected 2088 | 207 40 29 . 117 164 91 . 688 752 Remotely 421 | . . . . . . . . 214 207 Salvage Created 4135 | . 149 105 206 297 483 357 . 1121 1417 Parts 186 | . 12 7 19 8 19 15 . 58 48 Haulers Intercepted 4 | . . . 1 . 1 . . 1 1 Recyclers Shooed 4 | . . . . 1 . . . 2 1 Parts Field Recycled . | . . . . . . . . . . Retrieved Matter . | . . . . . . . . . . Parts Self-Destructed . | . . . . . . . . . . Prevented . | . . . . . . . . . . Kills | -11 -10 -10 -9 -9 -8 -7 -7 -7 -6 ------- Run | Yrd Mat Min Mat Min Mat Fac Was Fac Fac Combat Hostiles Destroyed 55 | . 3 1 6 3 7 4 . 17 14 Melee 12 | . . . . . 1 . . . 11 Guns 9 | . 2 1 . 2 . 2 . 2 . Cannons 16 | . . . 2 1 4 . . 8 1 AOE 12 | . . . 4 . 1 . . 7 . Classes Destroyed 15 | . 2 1 4 2 1 2 . 1 2 Worker 7 | . . 1 1 . 1 . . 2 2 Builder 5 | . 1 . 1 . . . . 1 2 Tunneler 1 | . . . 1 . . . . . . Hauler 4 | . . . 1 . 1 . . 1 1 Recycler 10 | . . . . 2 . 1 . 4 3 Mechanic 1 | . . . . . . . . . 1 Operator 2 | . . . 1 . . 1 . . . Watcher 2 | . . . . . . . . . 2 Swarmer 8 | . . . 3 . . . . 3 2 Grunt 29 | . 3 1 3 2 8 1 . 5 6 Brawler 1 | . . . . 1 . . . . . Duelist 1 | . . . . . . 1 . . . Sentry 7 | . . . . . 1 1 . 3 2 Hunter 2 | . . . . . . 1 . 1 . Programmer 9 | . . . . . . . . 5 4 Thug 1 | . . 1 . . . . . . . Best Kill Streak 9 | . 2 1 9 2 3 4 . 5 6 Combat Bots Only 4 | . 2 1 4 2 2 2 . 3 4 Max Kills in Single Turn 5 | . 2 1 5 2 2 1 . 5 1 Gunslinging . | . . . . . . . . . . Exploded 2 | . . . 2 . 1 . . 2 . Melee 1 | . . . . . 1 . . . 1 Uniques/NPCs Destroyed . | . . . . . . . . . . Combat | -11 -10 -10 -9 -9 -8 -7 -7 -7 -6 -------- Run | Yrd Mat Min Mat Min Mat Fac Was Fac Fac Hostile Shots Fired 763 | . 13 4 38 2 69 35 9 174 419 Missed 260 | . 4 1 11 1 17 21 1 64 140 Damage Taken 6389 | . 100 42 246 12 766 114 348 1077 3684 Core 1074 | . . 15 27 12 60 . . 104 856 Absorbed by Shields 631 | . . . . . 153 49 14 136 279 Core Remaining (%) 91 | 100 . 94 . 90 89 . . 85 . Volleys Fired 168 | . 10 8 15 9 38 15 13 47 13 Largest 2 | . 2 2 2 2 2 2 2 2 2 Hottest 136 | . 90 125 116 124 131 118 118 136 136 Shots Fired 294 | . 20 16 18 18 74 30 23 70 25 Gun 130 | . 20 8 11 9 34 15 13 13 7 Cannon 155 | . . 8 3 9 40 15 10 52 18 Launcher 9 | . . . 4 . . . . 5 . Special . | . . . . . . . . . . Kinetic 13 | . . . . . . 9 . 4 . Thermal 126 | . 10 13 14 18 30 . . 36 5 Explosive 9 | . . . 4 . . . . 5 . Electromagnetic 146 | . 10 3 . . 44 21 23 25 20 Robot Hit Streak 23 | . 6 4 2 10 12 23 10 12 14 Robot Miss Streak 4 | . 1 2 2 1 3 1 1 4 1 Penetration Max 1 | . . . . . . 1 . . . Secondary Targets . | . . . . . . . . . . Shots Hit Robots 255 | . 13 10 4 14 55 28 19 42 70 Core Hits 131 | . 6 5 9 6 20 8 6 42 29 Critical Kills 1 | . . . . . . . . . 1 Critical Parts Destroyed 4 | . . . . . . 1 . . 3 Critical Strikes 14 | . 2 . . 3 . 1 . 1 7 Burn 5 | . 2 . . 3 . . . . . Destroy 1 | . . . . . . 1 . . . Corrupt 1 | . . . . . . . . 1 . Smash 4 | . . . . . . . . . 4 Sever 1 | . . . . . . . . . 1 Impale 2 | . . . . . . . . . 2 Melee Attacks 68 | . . . . . . . . . 68 Impact 24 | . . . . . . . . . 24 Slashing 13 | . . . . . . . . . 13 Piercing 31 | . . . . . . . . . 31 Sneak Attacks 9 | . . . . . . . . . 9 Combat Hostiles . | . . . . . . . . . . Follow-up Attacks 5 | . . . . . . . . . 5 Damage Inflicted 7598 | . 181 169 688 266 1327 592 32 1640 2703 Guns 1210 | . 179 92 15 132 413 250 12 62 55 Cannons 2390 | . . 71 35 123 698 342 20 832 269 Explosions 1606 | . . . 636 . 211 . . 713 46 Melee 2333 | . . . . . . . . . 2333 Ramming 59 | . 2 6 2 11 5 . . 33 . Kinetic 176 | . . . . . . 156 . 20 . Thermal 2331 | . 88 137 193 255 701 . . 824 133 Explosive 945 | . . . 493 . . . . 452 . Electromagnetic 1754 | . 91 26 . . 621 436 32 311 237 Impact 932 | . . . . . . . . . 932 Slashing 318 | . . . . . . . . . 318 Piercing 1083 | . . . . . . . . . 1083 Highest Corruption 53 | . . . . . . . 24 53 7 Average Corruption 20 | . . . . . . . 12 36 4 Corruption Purged 5 | . . . . . . . . . 5 Corruption Blocked . | . . . . . . . . . . Effects 122 | . . . . . . . 8 87 27 Message Errors 36 | . . . . . . . 3 26 7 Matter Fused 28 | . . . . . . . 1 20 7 Heat Flow Errors 11 | . . . . . . . . 7 4 Energy Discharges 14 | . . . . . . . 1 9 4 Parts Rejected 2 | . . . . . . . 2 . . Parts Fused 1 | . . . . . . . . 1 . Data Loss (minor) 10 | . . . . . . . 1 6 3 Data Loss (major) 4 | . . . . . . . . 3 1 Misfires 5 | . . . . . . . . 5 . Alerts 3 | . . . . . . . . 2 1 Misdirections 4 | . . . . . . . . 4 . Weapon Failures 4 | . . . . . . . . 4 . Overload Shots . | . . . . . . . . . . Overflow Damage 598 | . . . 95 . 6 3 . 69 425 Projectiles 33 | . . . . . 6 3 . 19 5 Explosions 152 | . . . 95 . . . . 50 7 Melee 413 | . . . . . . . . . 413 Knockbacks 3 | . . . . . . . . 1 2 Impact 3 | . . . . . . . . 1 2 Kinetic . | . . . . . . . . . . Secondary . | . . . . . . . . . . Self-Inflicted Damage 167 | . . . 31 . 38 . . 44 54 Shots 5 | . . . 2 . 1 . . 1 1 Rammed 8 | . 1 2 1 1 1 . . 2 . Targets Rammed 11 | . 1 3 1 1 2 . . 3 . Kicked . | . . . . . . . . . . Crushed 3 | . . 1 . . 1 . . 1 . Highest Temperature 644 | . 240 221 90 384 35 24 48 644 307 Average Temperature 118 | . 101 98 43 160 15 13 21 158 95 Received Heat Transfer 1749 | . 54 45 . 6 378 12 . 159 1095 Effects 24 | . . . . 2 . . . 22 . Shutdowns 9 | . . . . 1 . . . 8 . Energy Bleed 3 | . . . . . . . . 3 . Interference 4 | . . . . . . . . 4 . Matter Decay 1 | . . . . . . . . 1 . Damage (minor) 1 | . . . . 1 . . . . . Damage (major) 6 | . . . . . . . . 6 . Siege Activations 1 | . . . . . . . . 1 . Total Turns 9 | . . . . . . . . 9 . Longest Duration 9 | . . . . . . . . 9 . Robots Corrupted 6 | . . . . . . 2 . . 4 Combat Hostiles 4 | . . . . . . 2 . . 2 Parts Fried 11 | . . . . . 2 3 . . 6 Impact Corruptions 13 | . . . . . . . . 1 12 Robots Melted 2 | . 1 . . . 1 . . . . Combat Hostiles 2 | . 1 . . . 1 . . . . Parts Melted 12 | . 1 . . 4 1 . . 5 1 Heat Transferred 4329 | . 407 296 211 777 1138 . . 1300 200 Parts Sabotaged . | . . . . . . . . . . Parts Stolen . | . . . . . . . . . . Parts Stripped . | . . . . . . . . . . Power Chain Reactions 7 | . . . . . 2 . . 4 1 Alert | -11 -10 -10 -9 -9 -8 -7 -7 -7 -6 ------- Run | Yrd Mat Min Mat Min Mat Fac Was Fac Fac Peak Influence 442 | . 115 79 360 140 419 248 27 442 241 Initial 189 | . . 44 30 140 48 107 27 . 189 Average 132 | . 78 73 121 109 250 129 12 160 86 Maximum Alert Level 2 | . . . 1 . 2 1 . 2 1 Low Security (%) 77 | 100 100 100 75 100 38 73 100 67 93 Level 1 20 | . . . 24 . 56 26 . 25 6 Level 2 2 | . . . . . 5 . . 6 . Level 3 . | . . . . . . . . . . Level 4 . | . . . . . . . . . . Level 5 . | . . . . . . . . . . High Security . | . . . . . . . . . . Max Security . | . . . . . . . . . . Squads Dispatched 19 | . 2 . 1 1 2 . . 7 6 Investigation 6 | . . . . 1 1 . . 1 3 Extermination 5 | . . . . . . . . 3 2 Reinforcement 7 | . 2 . 1 . 1 . . 2 1 Assault 1 | . . . . . . . . 1 . Garrison . | . . . . . . . . . . Intercept . | . . . . . . . . . . Searches Triggered . | . . . . . . . . . . Construction Impeded 1 | . . . . . . . . 1 . Haulers Reinforced . | . . . . . . . . . . Active Scanning Responses . | . . . . . . . . . . Cargo Convoy Interrupts 1 | . . . . . . . . . 1 Stealth | -11 -10 -10 -9 -9 -8 -7 -7 -7 -6 --------- Run | Yrd Mat Min Mat Min Mat Fac Was Fac Fac Distress Signals 1 | . 1 . . . . . . . . Communications Jammed . | . . . . . . . . . . Distress Signals . | . . . . . . . . . . Times Spotted 103 | . 4 2 5 4 22 9 6 19 32 Peak Tracking Total 10 | . 3 2 4 2 5 4 6 4 10 Tactical Retreats 9 | . . . . . 1 1 . . 7 Traps | -11 -10 -10 -9 -9 -8 -7 -7 -7 -6 ------- Run | Yrd Mat Min Mat Min Mat Fac Was Fac Fac Traps Triggered 6 | . . . . . . 1 . 3 2 Indirectly . | . . . . . . . . . . Trap Hack Attempts . | . . . . . . . . . . Triggered . | . . . . . . . . . . Disarmed . | . . . . . . . . . . Reprogrammed . | . . . . . . . . . . Reused . | . . . . . . . . . . Traps Extracted . | . . . . . . . . . . Installed . | . . . . . . . . . . Triggered . | . . . . . . . . . . Machines | -11 -10 -10 -9 -9 -8 -7 -7 -7 -6 ---------- Run | Yrd Mat Min Mat Min Mat Fac Was Fac Fac Machines Disabled 16 | . . . 9 . 1 . . 6 . Max in Single Turn 7 | . . . 7 . 1 . . 3 . Garrison Access 1 | . . . . . . . . 1 . Machines Repaired . | . . . . . . . . . . Machines Dismantled . | . . . . . . . . . . Machines Sabotaged . | . . . . . . . . . . Overloaded Fab Kills . | . . . . . . . . . . Hacking | -11 -10 -10 -9 -9 -8 -7 -7 -7 -6 --------- Run | Yrd Mat Min Mat Min Mat Fac Was Fac Fac Machines Accessed 18 | . 2 . 1 1 2 1 . 4 7 Terminals 14 | . 2 . 1 1 2 1 . 3 4 Fabricators . | . . . . . . . . . . Repair Stations 2 | . . . . . . . . . 2 Recycling Units . | . . . . . . . . . . Scanalyzers . | . . . . . . . . . . Garrison Access 2 | . . . . . . . . 1 1 Total Hacks 35 | . 3 . 2 7 4 1 . 6 12 Successful 6 | . . . . 3 1 . . 1 1 Failed 29 | . 3 . 2 4 3 1 . 5 11 Catastrophic 12 | . 3 . 1 2 2 . . 2 2 Database Lockouts . | . . . . . . . . . . Manual 17 | . 3 . 2 4 3 . . 2 3 Terminals 28 | . 3 . 2 7 4 1 . 4 7 Fabricators . | . . . . . . . . . . Repair Stations 2 | . . . . . . . . . 2 Recycling Units . | . . . . . . . . . . Scanalyzers . | . . . . . . . . . . Garrison Access 5 | . . . . . . . . 2 3 Terminal Hacks 6 | . . . . 3 1 . . 1 1 Record 4 | . . . . 3 1 . . . . Open DSF 2 | . . . . . . . . 1 1 Fabricator Hacks . | . . . . . . . . . . Repair Station Hacks . | . . . . . . . . . . Recycling Unit Hacks . | . . . . . . . . . . Scanalyzer . | . . . . . . . . . . Garrison Access Hacks . | . . . . . . . . . . Unauthorized Hacks . | . . . . . . . . . . Terminals . | . . . . . . . . . . Fabricators . | . . . . . . . . . . Repair Stations . | . . . . . . . . . . Recycling Units . | . . . . . . . . . . Scanalyzers . | . . . . . . . . . . Garrison Access . | . . . . . . . . . . Data Cores Recovered 1 | . . . . . . 1 . . . Used . | . . . . . . . . . . Hacking Detections 12 | . 1 . . 1 2 1 . 3 4 Full Trace Events 6 | . . . . 1 1 . . 1 3 Feedback Events 1 | . . . . . . . . . 1 Corruption 1 | . . . . . . . . . 1 Feedback Blocked . | . . . . . . . . . . Robot Schematics Acquired . | . . . . . . . . . . Robots Built . | . . . . . . . . . . Authchips . | . . . . . . . . . . Time . | . . . . . . . . . . Total Robot Build Rating . | . . . . . . . . . . Part Schematics Acquired . | . . . . . . . . . . Parts Built . | . . . . . . . . . . Authchips . | . . . . . . . . . . Time . | . . . . . . . . . . Total Part Build Rating . | . . . . . . . . . . Parts Repaired . | . . . . . . . . . . Time . | . . . . . . . . . . Parts Recycled . | . . . . . . . . . . Recycled Matter . | . . . . . . . . . . Retrieved Matter . | . . . . . . . . . . Retrieved Components . | . . . . . . . . . . Parts Scanalyzed . | . . . . . . . . . . Part Schematics Acquired . | . . . . . . . . . . Parts Damaged . | . . . . . . . . . . Bothacking | -11 -10 -10 -9 -9 -8 -7 -7 -7 -6 ------------ Run | Yrd Mat Min Mat Min Mat Fac Was Fac Fac Used RIF Installer . | . . . . . . . . . . Robots Hacked . | . . . . . . . . . . Non-combat . | . . . . . . . . . . Combat . | . . . . . . . . . . Robot Hacks Applied . | . . . . . . . . . . Relay Couplers Released 6 | . . . . . . . . 2 4 Machine Destruction 2 | . . . . . . . . 2 . Programmers 4 | . . . . . . . . . 4 Fabnet Peak Effective % . | . . . . . . . . . . Robots Rewired . | . . . . . . . . . . Allies Hacked . | . . . . . . . . . . Hacks Repelled . | . . . . . . . . . . Allies | -11 -10 -10 -9 -9 -8 -7 -7 -7 -6 -------- Run | Yrd Mat Min Mat Min Mat Fac Was Fac Fac Total Allies 5 | . . . . 4 . . 1 . . Largest Group 4 | . . . . 4 3 . 1 . . Highest-Rated Group 71 | . . . . 71 40 . 31 . . Highest-Rated Ally 31 | . . . . 31 16 . 31 . . Total Orders . | . . . . . . . . . . Ally Attacks 67 | . . . . 4 54 . 9 . . Total Damage 841 | . . . . 47 647 . 147 . . Kills 12 | . . . . 1 11 . . . . Allies Corrupted . | . . . . . . . . . . Allies Melted . | . . . . . . . . . . Intel | -11 -10 -10 -9 -9 -8 -7 -7 -7 -6 ------- Run | Yrd Mat Min Mat Min Mat Fac Was Fac Fac Robot Analysis Total . | . . . . . . . . . . Derelict Logs Recovered 1 | . . . . 1 . . . . . Drone Launches . | . . . . . . . . . . Drone Recoveries . | . . . . . . . . . . Exploration | -11 -10 -10 -9 -9 -8 -7 -7 -7 -6 ------------- Run | Yrd Mat Min Mat Min Mat Fac Was Fac Fac Turns Passed 6800 | 90 208 302 189 704 1168 532 243 1487 1877 Spaces Moved 3804 | 50 109 169 91 414 467 182 125 660 1537 Core 12 | 1 . . . . . . . . 11 Treads 2739 | 49 109 169 91 414 467 182 125 660 473 Legs 180 | . . . . . . . . . 180 Wheels . | . . . . . . . . . . Hover 494 | . . . . . . . . . 494 Flight 379 | . . . . . . . . . 379 Fastest Speed 26 | 50 160 160 160 160 160 243 160 160 26 Average Speed 148 | 157 160 160 160 160 200 243 164 188 96 Slowest Speed 800 | 160 160 160 160 160 243 243 243 400 800 Overloaded Moves . | . . . . . . . . . . Propulsion Burnouts . | . . . . . . . . . . Robots Hopped 5 | . . . . . . . . . 5 Cave-ins Triggered . | . . . . . . . . . . Exploration Rate (%) 32 | 4 34 15 14 70 34 6 92 23 31 Regions Visited 9 Branch Regions 2 Pre-discovered Areas . | . . . . . . . . . . Known Exits Taken . | . . . . . . . . . . Unknown Exits Taken 7 | 1 1 1 1 1 1 . . 1 . Scrap Searched 1 | . . . . 1 . . . . . Spaces Dug . | . . . . . . . . . . Terrain Destroyed 105 | . . . 38 . 12 . . 47 8 Melee . | . . . . . . . . . . Projectile . | . . . . . . . . . . AOE 105 | . . . 38 . 12 . . 47 8 Terrain Rammed . | . . . . . . . . . . Walls Destroyed . | . . . . . . . . . . Machines Disabled . | . . . . . . . . . . Actions | -11 -10 -10 -9 -9 -8 -7 -7 -7 -6 --------- Run | Yrd Mat Min Mat Min Mat Fac Was Fac Fac Total 4560 | 59 122 182 117 437 625 242 142 824 1810 Wait 181 | . . . . 6 73 31 . 35 36 Move 3786 | 49 108 168 90 413 466 182 124 659 1527 Hop 5 | . . . . . . . . . 5 Pick Up 80 | 4 2 2 3 1 14 4 1 7 42 Fast Attach 66 | 5 . . 1 3 4 . 1 14 38 Attach 51 | 1 . . . . 3 3 . 20 24 Detach 25 | . . . . 1 2 . 1 11 10 Swap 52 | . 1 1 4 1 9 5 . 16 15 Drop 75 | . . . 3 2 14 2 2 12 40 Fire 168 | . 10 8 15 9 38 15 13 47 13 Melee 60 | . . . . . . . . . 60 Ram . | . . . . . . . . . . Kick . | . . . . . . . . . . Crush 11 | . 1 3 1 1 2 . . 3 . Escape Stasis . | . . . . . . . . . . Rewire . | . . . . . . . . . . Trap . | . . . . . . . . . . Miscellaneous . | . . . . . . . . . . Route ------- -11/Scrapyard -10/Materials (discovered 2 exits: *Mat / [*Min]) -10/Mines -9/Materials -9/Mines -8/Materials (discovered 2 exits: *Fac x2) -7/Factory -7/Waste -7/Factory -6/Factory History --------- Turn | Location | Event 13 | -11/Scrapyard | Discovered new exit (range 16) 91 | -11/Scrapyard | Entered Materials 174 | -10/Materials | Discovered new exit (range 12) 280 | -10/Materials | Discovered new exit (range 6) 299 | -10/Materials | Entered Mines 302 | -10/Mines | Build established: Mutant 326 | -10/Mines | Met a Derelict bent on vengeance 405 | -10/Mines | Discovered new exit (range 5) 601 | -10/Mines | Entered Materials 601 | -9/Materials | Evolved 2 slots: Utility x2 743 | -9/Materials | Discovered new exit (range 16) 790 | -9/Materials | Entered Mines 874 | -9/Mines | Learned 8 Materials zone layouts 967 | -9/Mines | Received a Mining Laser from a helpful Derelict 1108 | -9/Mines | Discovered new exit (range 12) 1128 | -9/Mines | Assisted by bots powering up and referring to "LRC-V3" 1494 | -9/Mines | Entered Materials 1494 | -8/Materials | Accompanied by 3 allies 1494 | -8/Materials | Evolved 2 slots: Propulsion x1, Utility x1 1713 | -8/Materials | Discovered new exit (range 8) 1972 | -8/Materials | Build established: Scavenger-Mutant 2600 | -8/Materials | Discovered new exit (range 10) 2662 | -8/Materials | Entered Factory 2662 | -7/Factory | Evolved 2 slots: Power x1, Utility x1 3194 | -7/Factory | Sucked down chute 3194 | -7/Factory | Entered Waste 3195 | -7/Waste | Met a frightened Derelict 3209 | -7/Waste | EMP discharged 3256 | -7/Waste | Spotted C-40 Crusher 3266 | -7/Waste | Spotted C-40 Crusher 3278 | -7/Waste | Spotted C-40 Crusher 3281 | -7/Waste | Crushed by Compactor (0 parts destroyed, 1 dropped) 3281 | -7/Waste | Crushed by Compactor (0 parts destroyed, 1 dropped) 3288 | -7/Waste | Crushed by Compactor (0 parts destroyed, 1 dropped) 3291 | -7/Waste | Crushed by Compactor (1 part destroyed) 3304 | -7/Waste | Spotted C-40 Crusher 3309 | -7/Waste | EMP discharged 3309 | -7/Waste | System corruption reached 10% 3311 | -7/Waste | Spotted C-40 Crusher 3317 | -7/Waste | Crushed by Compactor (1 part destroyed, 1 dropped) 3341 | -7/Waste | Spotted C-40 Crusher 3409 | -7/Waste | EMP discharged 3423 | -7/Waste | Discovered new exit (range 10) 3437 | -7/Waste | Entered Factory 3510 | -7/Factory | Build established: Mutant 4044 | -7/Factory | System corruption reached 30% 4090 | -7/Factory | Build established: Scavenger-Mutant 4724 | -7/Factory | Discovered new exit (range 4) 4880 | -7/Factory | Lost 3 parts (3u) 4924 | -7/Factory | Entered another Factory area 4924 | -6/Factory | Evolved 2 slots: Propulsion x1, Utility x1 5496 | -6/Factory | Found Hvy. Insulated Plating 5824 | -6/Factory | Lost 13 parts (3p4n4u2w) 6272 | -6/Factory | Lost 5 parts (2n3u) 6524 | -6/Factory | Spotted B-75 Beast 6587 | -6/Factory | Core integrity fell below 50% 6618 | -6/Factory | Released all parts (4) 6619 | -6/Factory | Core integrity fell below 20% 6638 | -6/Factory | Lost 15 parts (2p4n7u2w) 6677 | -6/Factory | Cargo convoy interrupted 6801 | -6/Factory | Destroyed by S-27 Virus with Autogun Last Messages --------------- 06767_ K-01 Serf collects debris. 06768_ Cesium-ion Thruster destroyed. 06769_ K-01 Serf collects debris. 06773_ K-01 Serf cleans the Power Conduit. 06775_ Phase Shifter destroyed. 06775_ K-01 Serf collects debris. 06777_ K-01 Serf cleans the Power Conduit. 06778_ S-27 Virus Autogun severed. 06779_ System corrupted: Energy discharge (-56). 06779_ K-01 Serf cleans the Power Conduit. 06781_ Destroyed VTOL Module. 06782_ Cesium-ion Thruster destroyed. 06782_ K-01 Serf cleans the Power Conduit. 06783_ S-27 Virus destroyed. 06784_ K-01 Serf collects debris. 06787_ Acquired 26 matter. 06789_ Dropped Chainsword. 06796_ K-01 Serf collects debris. 06797_ K-01 Serf cleans the Power Conduit. 06798_ BSU411M<>K2%XFXZQ2ZKMG% 9J Map ----- +----------------------------------------------------+ | """" """" """" # ] ## # | | """" """" """" # ## """ # | | """" """" """" # ## """ # | | # ## """ !# | | ###+#######+### # | | # # | | + """" # | | ! # """" # | | ########+###########/######### # """" # | | ^##????????????????????????????# # """" # | | #?????????????????????????????# # = # | | #?????????????????????????????# # # | | #????????????????????????????## # # | | #????????????????????????????+ ##+##### | | ??????????????????????????????# #???? | | ???????????????????????????????# #???? | | ???????????????????????????????# #???? | | ???????????????????????????????# #???? | | ???????????????????????????????# #???? | | ???????????????????????????????# #???? | | ???????????????????????????????# #???? | | ???????????????????????????????# #???? | | ???????????????????????????????# #???? | | ????????????####################+##+##### | | ?????????? k # # | | ?????????? s @ # # | | ?????????? # # | | ?????????????##############s # # | | ???????????????# % # # # | | ???????????????# ! ! # # # | | ???????????????# [! / # # | | ???????????????# "!"/ # # # | | ???????????????# "[" # + # | | ???????????????# ]|| " " # # # | | ???????????????# ]| " " # # # | | ???????????????# =| " " # # # | | ???????????????# " " + + # | | ???????????????# " " # # # | | ???????????????# " " # # # | | ???????????????# " " + " # | | ???????????????# ###+#####+##### | | ???????????????# # ## #???? | | ???????????????# # ## #???? | | ???????????????############""" ## #???? | | ??????????????????????????#""" ## #???? | | ??????????????????????????#""" ## #???? | | ??????????????????????????# + #???? | | ??????????????????????????###########???? | | ????????????????????????????????????????? | | ????????????????????????????????????????? | +----------------------------------------------------+ Best States ------------- Heat Dissipation 79 Energy Generation 30 Energy Capacity 350 Matter Stores 300 Matter Capacity 300 Sight Range 22 Robot Scan Range 15 Terrain Scan Density 10 Armor Coverage 675 Resistance: TH 20 Melee Speed Boost 20 Phase Shifting 5 Evasion (%) 74 Targeting Accuracy 12 Melee Accuracy 8 Core Analysis 9 Recoil Reduction 4 Defensive Hacking 10 Item Schematics ----------------- None Robot Schematics ------------------ None Fabricated ------------ Nothing Alien Tech Used ----------------- None Achievements -------------- Z1$+NX3F=JRE3_ZNQR Challenges ------------ None Game ------ Seed FlightSmallFacilitator Manual? 0 Play Time 01:20:14 Cumulative 21.7 hours Start 2025.04.25 @ 05:38:36 End 2025.04.25 @ 17:14:17 Sessions 3 Manual Loads 0 Difficulty Rogue Special Mode None Game No. 26 Rogue 19 Adventurer 7 Explorer 0 Win Type - Total 2 Types 1/0/1/0/0/0/0/0/0 Lore% 8 Gallery% 27 Achievement% 26 Wizard Run 0 Options --------- Layout 1 ASCII 0 Keyboard 1 Movement Vi Keybinds 0 Fullscreen 1 Font 24/Smallcaps Map View 50x35 Zoom Use 0% Tactical HUD 1 Map Filters NONE Filters NONE Steam 1 RUN: a149615c-bb25-4afa-9712-97fcacbae91e